[Event "Festival Groningen-A 2024"]
[Site "Groningen"]
[Date "2024.12.24"]
[Round "4.19"]
[White "Dolzhykova, Kateryna"]
[Black "Hummel, Paul"]
[Result "1-0"]
[ECO "B15"]
[WhiteElo "2322"]
[BlackElo "2160"]
[Annotator "RC"]
[PlyCount "47"]
[EventDate "2024.12.21"]
[EventType "swiss"]
[EventCountry "NED"]
[SourceTitle "playchess.com"]
[Source "ChessBase"]
[SourceQuality "1"]
[TimeControl "40/5400+30:1800+30"]

1. e4 {[%emt 0:00:03]} c6 {[%emt 0:00:08]} 2. d4 {[%emt 0:00:06]} d5 {[%emt 0:00:05]} 3. Nd2 {[%emt 0:00:14]} dxe4 {[%emt 0:00:07]} 4. Nxe4 {[%emt 0:00:03]} Nf6 {[%emt 0:00:44]} 5. Nxf6+ {[%emt 0:00:11]} exf6 {[%emt 0:00:07]} 6. c3 {[%emt 0:00:11]} Bd6 {[%emt 0:00:05]} 7. Bd3 {[%emt 0:00:23]} O-O {[%emt 0:00:10]} 8. Qc2 {[%emt 0:01:24]} h5 {[%emt 0:00:06]} 9. Be3 {[%emt 0:00:44]} Re8 {[%emt 0:00:31]} 10. O-O-O {[%emt 0:01:11]} Be6 {[%emt 0:00:10]} 11. Kb1 {[%emt 0:02:06]} Nd7 {[%emt 0:02:06]} 12. Nf3 {[%emt 0:04:34]} b5 {[%emt 0:04:37]} 13. h3 {[%emt 0:06:25]} Nb6 {[%emt 0:04:23]} 14. g4 {[%emt 0:10:15]} Bd5 {[%emt 0:01:49]} 15. Nh4 {[%emt 0:05:32]} Bxh1 {[%emt 0:00:07]} 16. Rxh1 {[%emt 0:00:02]} g5 {[%emt 0:16:53]} 17. gxh5 {[%emt 0:10:09]} Rxe3 {[%emt 0:02:34]} 18. fxe3 {[%emt 0:02:47]} gxh4 {[%emt 0:00:31]} 19. Qg2+ {[%emt 0:12:26]} Bg3 {[%emt 0:02:35]} 20. Qe4 {[%emt 0:00:41]} Qd5 {[%emt 0:01:30]} 21. Qh7+ {[%emt 0:00:07]} Kf8 {[%emt 0:00:01]} 22. Rf1 {[%emt 0:01:47]} Qg5 {[%emt 0:07:38]} 23. Bg6 {[%emt 0:02:23]} Qd5 {[%emt 0:03:48]} 24. Rxf6 {[%emt 0:03:09]} 1-0

[Event "Festival Groningen-A 2024"]
[Site "Groningen"]
[Date "2024.12.24"]
[Round "4.20"]
[White "Nicolai, Amir"]
[Black "Ivanov, Dmytry"]
[Result "1-0"]
[ECO "B22"]
[WhiteElo "2156"]
[BlackElo "2072"]
[Annotator "RC"]
[PlyCount "57"]
[EventDate "2024.12.21"]
[EventType "swiss"]
[EventCountry "NED"]
[SourceTitle "playchess.com"]
[Source "ChessBase"]
[SourceQuality "1"]
[TimeControl "40/5400+30:1800+30"]

1. e4 {[%emt 0:00:06]} c5 {[%emt 0:00:06]} 2. c3 {[%emt 0:00:07]} g6 {[%emt 0:01:52]} 3. d4 {[%emt 0:00:12]} Qc7 {[%emt 0:03:57]} 4. Nf3 {[%emt 0:04:31]} d6 {[%emt 0:02:20]} 5. h3 {[%emt 0:02:08]} Bg7 {[%emt 0:02:19]} 6. Be3 {[%emt 0:04:37]} Nf6 {[%emt 0:06:54]} 7. Nbd2 {[%emt 0:04:32]} O-O {[%emt 0:00:40]} 8. Bd3 {[%emt 0:10:36]} a6 {[%emt 0:05:19]} 9. O-O {[%emt 0:01:44]} b5 {[%emt 0:01:51]} 10. Nh2 {[%emt 0:02:53]} Bb7 {[%emt 0:02:00]} 11. f4 {[%emt 0:03:23]} e6 {[%emt 0:14:53]} 12. Qe1 {[%emt 0:05:15]} cxd4 {[%emt 0:03:55]} 13. cxd4 {[%emt 0:02:14]} d5 {[%emt 0:00:50]} 14. e5 {[%emt 0:01:49]} Ne4 {[%emt 0:00:08]} 15. Rc1 {[%emt 0:00:54]} Qa5 {[%emt 0:02:21]} 16. Nxe4 {[%emt 0:01:28]} Qxe1 {[%emt 0:02:09]} 17. Rfxe1 {[%emt 0:00:56]} dxe4 {[%emt 0:00:08]} 18. Bb1 {[%emt 0:00:12]} Rd8 {[%emt 0:09:30]} 19. Bf2 {[%emt 0:08:46]} e3 {[%emt 0:00:37]} 20. Rxe3 {[%emt 0:04:20]} Nd7 {[%emt 0:10:09]} 21. Rc7 {[%emt 0:03:14]} Bd5 {[%emt 0:01:19]} 22. Bh4 {[%emt 0:01:29]} g5 {[%emt 0:12:31]} 23. fxg5 {[%emt 0:02:45]} Nb6 {[%emt 0:03:27]} 24. g6 {[%emt 0:04:26]} hxg6 {[%emt 0:00:03]} 25. Bxd8 {[%emt 0:00:55]} Rxd8 {[%emt 0:00:05]} 26. Ng4 {[%emt 0:10:29]} Bf8 {[%emt 0:00:09]} 27. Nf6+ {[%emt 0:00:48]} Kg7 {[%emt 0:00:11]} 28. Rg3 {[%emt 0:00:15]} Bd6 {[%emt 0:04:38]} 29. Rxg6+ {[%emt 0:00:23]} 1-0

[Event "Festival Groningen-A 2024"]
[Site "Groningen"]
[Date "2024.12.24"]
[Round "4.21"]
[White "Schoorl, Rob"]
[Black "Ponnio, Toni"]
[Result "1/2-1/2"]
[ECO "A14"]
[WhiteElo "2295"]
[BlackElo "2111"]
[Annotator "RC"]
[PlyCount "101"]
[EventDate "2024.12.21"]
[EventType "swiss"]
[EventCountry "NED"]
[SourceTitle "playchess.com"]
[Source "ChessBase"]
[SourceQuality "1"]
[TimeControl "40/5400+30:1800+30"]

1. c4 {[%emt 0:00:04]} e6 {[%emt 0:00:10]} 2. g3 {[%emt 0:00:09]} Nf6 {[%emt 0:00:12]} 3. Bg2 {[%emt 0:00:08]} d5 {[%emt 0:00:10]} 4. Nf3 {[%emt 0:00:07]} Be7 {[%emt 0:00:18]} 5. O-O {[%emt 0:00:10]} O-O {[%emt 0:00:09]} 6. b3 {[%emt 0:00:25]} c5 {[%emt 0:00:16]} 7. cxd5 {[%emt 0:00:47]} Nxd5 {[%emt 0:03:32]} 8. Bb2 {[%emt 0:00:08]} Nc6 {[%emt 0:00:30]} 9. d4 {[%emt 0:01:07]} cxd4 {[%emt 0:02:35]} 10. Nxd4 {[%emt 0:01:44]} Nxd4 {[%emt 0:00:40]} 11. Bxd4 {[%emt 0:03:08]} Bf6 {[%emt 0:05:22]} 12. Bxf6 {[%emt 0:14:39]} Qxf6 {[%emt 0:02:10]} 13. Na3 {[%emt 0:00:21]} Rd8 {[%emt 0:11:12]} 14. Qe1 {[%emt 0:16:03]} e5 {[%emt 0:28:27]} 15. Rd1 {[%emt 0:09:12]} Be6 {[%emt 0:07:00]} 16. Rd2 {[%emt 0:14:15]} Qe7 {[%emt 0:02:19]} 17. Nc4 {[%emt 0:02:07]} f6 {[%emt 0:01:38]} 18. Qd1 {[%emt 0:07:05]} Nc3 {[%emt 0:04:27]} 19. Qc2 {[%emt 0:00:37]} Rxd2 {[%emt 0:01:55]} 20. Qxd2 {[%emt 0:00:29]} Nb5 {[%emt 0:01:56]} 21. Rd1 {[%emt 0:04:14]} Bxc4 {[%emt 0:04:36]} 22. bxc4 {[%emt 0:00:14]} Nd4 {[%emt 0:00:09]} 23. e3 {[%emt 0:01:17]} Nc6 {[%emt 0:00:32]} 24. Bd5+ {[%emt 0:01:40]} Kh8 {[%emt 0:01:54]} 25. Bxc6 {[%emt 0:04:33]} bxc6 {[%emt 0:00:08]} 26. Qd7 {[%emt 0:00:06]} Qxd7 {[%emt 0:06:20]} 27. Rxd7 {[%emt 0:00:03]} h6 {[%emt 0:02:09]} 28. Rc7 {[%emt 0:03:06]} Rb8 {[%emt 0:02:34]} 29. Rxc6 {[%emt 0:01:37]} Rb4 {[%emt 0:00:38]} 30. Ra6 {[%emt 0:01:32]} Rxc4 {[%emt 0:00:06]} 31. Rxa7 {[%emt 0:00:04]} Kh7 {[%emt 0:01:04]} 32. a4 {[%emt 0:02:40]} Kg6 {[%emt 0:00:35]} 33. a5 {[%emt 0:01:26]} Ra4 {[%emt 0:00:23]} 34. Kg2 {[%emt 0:02:34]} Ra2 {[%emt 0:01:06]} 35. g4 {[%emt 0:01:06]} h5 {[%emt 0:01:59]} 36. h3 {[%emt 0:01:46]} hxg4 {[%emt 0:01:02]} 37. hxg4 {[%emt 0:00:02]} Ra4 {[%emt 0:00:37]} 38. Kg3 {[%emt 0:01:14]} Kh6 {[%emt 0:00:21]} 39. a6 {[%emt 0:04:56]} Kg6 {[%emt 0:00:19]} 40. Ra8 {[%emt 0:00:22]} Kh6 {[%emt 0:02:08]} 41. a7 {[%emt 0:13:25]} Kg6 {[%emt 0:00:57]} 42. f3 {[%emt 0:07:53]} Kh7 {[%emt 0:00:40]} 43. g5 {[%emt 0:03:11]} f5 {[%emt 0:09:56]} 44. e4 {[%emt 0:04:50]} fxe4 {[%emt 0:01:31]} 45. fxe4 {[%emt 0:00:31]} Kg6 {[%emt 0:00:30]} 46. Re8 {[%emt 0:02:15]} Rxa7 {[%emt 0:00:05]} 47. Rxe5 {[%emt 0:00:26]} Ra1 {[%emt 0:00:15]} 48. Rb5 {[%emt 0:03:16]} Rg1+ {[%emt 0:01:31]} 49. Kf4 {[%emt 0:00:10]} Rf1+ {[%emt 0:00:09]} 50. Kg4 {[%emt 0:01:10]} Rg1+ {[%emt 0:00:05]} 51. Kf4 {[%emt 0:00:05]} 1/2-1/2

[Event "Festival Groningen-A 2024"]
[Site "Groningen"]
[Date "2024.12.24"]
[Round "4.22"]
[White "Van Rootselaar, Rik"]
[Black "Schilstra, Laurens"]
[Result "1-0"]
[ECO "A52"]
[WhiteElo "2265"]
[BlackElo "2150"]
[Annotator "RC"]
[PlyCount "87"]
[EventDate "2024.12.21"]
[EventType "swiss"]
[EventCountry "NED"]
[SourceTitle "playchess.com"]
[Source "ChessBase"]
[SourceQuality "1"]
[TimeControl "40/5400+30:1800+30"]

1. d4 {[%emt 0:00:21]} Nf6 {[%emt 0:00:05]} 2. c4 {[%emt 0:00:03]} e5 {[%emt 0:00:04]} 3. dxe5 {[%emt 0:00:37]} Ng4 {[%emt 0:00:04]} 4. e3 {[%emt 0:01:17]} Nxe5 {[%emt 0:00:08]} 5. f4 {[%emt 0:00:13]} Nec6 {[%emt 0:00:05]} 6. Nc3 {[%emt 0:01:40]} Bc5 {[%emt 0:00:38]} 7. Bd3 {[%emt 0:01:59]} d6 {[%emt 0:01:14]} 8. Nf3 {[%emt 0:01:57]} Nd7 {[%emt 0:01:13]} 9. O-O {[%emt 0:03:44]} Nf6 {[%emt 0:03:47]} 10. Kh1 {[%emt 0:02:34]} Bg4 {[%emt 0:03:14]} 11. a3 {[%emt 0:06:00]} a5 {[%emt 0:00:37]} 12. Qe1 {[%emt 0:07:50]} Qd7 {[%emt 0:14:18]} 13. Bd2 {[%emt 0:01:45]} O-O {[%emt 0:00:52]} 14. Qh4 {[%emt 0:02:15]} Ne7 {[%emt 0:03:35]} 15. Nd5 {[%emt 0:04:01]} Nexd5 {[%emt 0:00:13]} 16. cxd5 {[%emt 0:00:05]} Bf5 {[%emt 0:00:38]} 17. Bc4 {[%emt 0:05:38]} Rfe8 {[%emt 0:02:02]} 18. Bc3 {[%emt 0:05:38]} Ng4 {[%emt 0:02:49]} 19. Nd4 {[%emt 0:04:29]} Nxe3 {[%emt 0:16:10]} 20. Bb5 {[%emt 0:01:35]} Qe7 {[%emt 0:00:09]} 21. Qg3 {[%emt 0:03:42]} Be4 {[%emt 0:11:04]} 22. Rfe1 {[%emt 0:11:22]} Nxg2 {[%emt 0:05:44]} 23. Nf3 {[%emt 0:00:56]} f5 {[%emt 0:03:31]} 24. Kxg2 {[%emt 0:03:28]} Rf8 {[%emt 0:00:04]} 25. Bd3 {[%emt 0:01:30]} Rae8 {[%emt 0:00:03]} 26. Bxe4 {[%emt 0:00:44]} fxe4 {[%emt 0:00:13]} 27. Rxe4 {[%emt 0:00:24]} Qf7 {[%emt 0:00:26]} 28. Rae1 {[%emt 0:01:05]} Rxe4 {[%emt 0:00:06]} 29. Rxe4 {[%emt 0:00:03]} g6 {[%emt 0:00:25]} 30. Re6 {[%emt 0:03:35]} Qf5 {[%emt 0:00:41]} 31. Re7 {[%emt 0:08:24]} Qc2+ {[%emt 0:06:08]} 32. Nd2 {[%emt 0:01:13]} Bd4 {[%emt 0:00:49]} 33. Bxd4 {[%emt 0:01:21]} Qxd2+ {[%emt 0:00:03]} 34. Qf2 {[%emt 0:00:10]} Qxf2+ {[%emt 0:01:15]} 35. Bxf2 {[%emt 0:00:21]} Rxf4 {[%emt 0:00:04]} 36. Rxc7 {[%emt 0:00:08]} Rf5 {[%emt 0:00:19]} 37. Rxb7 {[%emt 0:00:10]} Rxd5 {[%emt 0:00:03]} 38. a4 {[%emt 0:00:25]} h5 {[%emt 0:00:10]} 39. Rb5 {[%emt 0:01:28]} Rd2 {[%emt 0:00:08]} 40. Rxa5 {[%emt 0:00:25]} Rxb2 {[%emt 0:00:05]} 41. Ra8+ {[%emt 0:30:10]} Kf7 {[%emt 0:30:41]} 42. a5 {[%emt 0:00:04]} h4 {[%emt 0:02:45]} 43. a6 {[%emt 0:00:45]} h3+ {[%emt 0:00:03]} 44. Kg3 {[%emt 0:00:44]} 1-0

[Event "Festival Groningen-A 2024"]
[Site "Groningen"]
[Date "2024.12.24"]
[Round "4.23"]
[White "Ten Dam, Bram"]
[Black "Bakija, Alan"]
[Result "1/2-1/2"]
[ECO "C55"]
[WhiteElo "2002"]
[BlackElo "2233"]
[Annotator "RC"]
[PlyCount "48"]
[EventDate "2024.12.21"]
[EventType "swiss"]
[EventCountry "NED"]
[SourceTitle "playchess.com"]
[Source "ChessBase"]
[SourceQuality "1"]
[TimeControl "40/5400+30:1800+30"]

1. e4 {[%emt 0:00:30]} e5 {[%emt 0:02:13]} 2. Nf3 {[%emt 0:00:00]} Nc6 {[%emt 0:00:04]} 3. Bc4 {[%emt 0:00:00]} Nf6 {[%emt 0:00:05]} 4. d3 {[%emt 0:00:00]} Be7 {[%emt 0:00:14]} 5. O-O {[%emt 0:00:20]} O-O {[%emt 0:00:13]} 6. c3 {[%emt 0:01:15]} d5 {[%emt 0:00:13]} 7. exd5 {[%emt 0:00:32]} Nxd5 {[%emt 0:00:05]} 8. h3 {[%emt 0:05:08]} Bf5 {[%emt 0:18:45]} 9. Re1 {[%emt 0:04:28]} Bg6 {[%emt 0:00:07]} 10. Bb3 {[%emt 0:05:11]} Bf6 {[%emt 0:07:02]} 11. Bc2 {[%emt 0:13:31]} Nb6 {[%emt 0:05:08]} 12. a4 {[%emt 0:07:08]} a5 {[%emt 0:02:27]} 13. Be3 {[%emt 0:02:49]} Nd5 {[%emt 0:06:48]} 14. Nbd2 {[%emt 0:07:24]} Qd7 {[%emt 0:03:23]} 15. Ne4 {[%emt 0:05:39]} Be7 {[%emt 0:00:21]} 16. Bc5 {[%emt 0:10:35]} Rad8 {[%emt 0:11:02]} 17. Bxe7 {[%emt 0:03:10]} Qxe7 {[%emt 0:00:32]} 18. Qe2 {[%emt 0:02:27]} Rfe8 {[%emt 0:06:20]} 19. Rad1 {[%emt 0:03:53]} Nf4 {[%emt 0:05:48]} 20. Qe3 {[%emt 0:04:24]} Ne6 {[%emt 0:02:59]} 21. Nfg5 {[%emt 0:02:49]} Nxg5 {[%emt 0:06:24]} 22. Nxg5 {[%emt 0:00:50]} h6 {[%emt 0:05:17]} 23. Nf3 {[%emt 0:00:57]} Qf6 {[%emt 0:02:52]} 24. Nd2 {[%emt 0:01:07]} b6 {[%emt 0:06:15]} 1/2-1/2

[Event "Festival Groningen-A 2024"]
[Site "Groningen"]
[Date "2024.12.24"]
[Round "4.24"]
[White "Zecha, Oscar"]
[Black "Sharma, Dinesh K."]
[Result "1/2-1/2"]
[ECO "C02"]
[WhiteElo "2134"]
[BlackElo "2200"]
[Annotator "RC"]
[PlyCount "42"]
[EventDate "2024.12.21"]
[EventType "swiss"]
[EventCountry "NED"]
[SourceTitle "playchess.com"]
[Source "ChessBase"]
[SourceQuality "1"]
[TimeControl "40/5400+30:1800+30"]

1. e4 {[%emt 0:00:05]} e6 {[%emt 0:00:17]} 2. d4 {[%emt 0:00:10]} d5 {[%emt 0:00:02]} 3. e5 {[%emt 0:00:11]} c5 {[%emt 0:00:06]} 4. c3 {[%emt 0:00:08]} Nc6 {[%emt 0:00:05]} 5. Nf3 {[%emt 0:00:05]} Qb6 {[%emt 0:00:09]} 6. Bd3 {[%emt 0:00:10]} cxd4 {[%emt 0:00:27]} 7. O-O {[%emt 0:00:16]} Bd7 {[%emt 0:00:38]} 8. Re1 {[%emt 0:00:11]} Nge7 {[%emt 0:01:13]} 9. a3 {[%emt 0:04:10]} Ng6 {[%emt 0:03:00]} 10. h4 {[%emt 0:04:40]} Rc8 {[%emt 0:04:00]} 11. h5 {[%emt 0:09:59]} Nge7 {[%emt 0:00:26]} 12. b4 {[%emt 0:05:03]} a6 {[%emt 0:05:51]} 13. Bb2 {[%emt 0:01:54]} Na5 {[%emt 0:08:08]} 14. cxd4 {[%emt 0:04:50]} Nc4 {[%emt 0:00:32]} 15. Qb3 {[%emt 0:11:18]} Nf5 {[%emt 0:19:35]} 16. Rc1 {[%emt 0:05:30]} Nxb2 {[%emt 0:08:15]} 17. Rxc8+ {[%emt 0:00:09]} Bxc8 {[%emt 0:00:08]} 18. Qxb2 {[%emt 0:00:02]} Be7 {[%emt 0:02:19]} 19. Bxf5 {[%emt 0:08:05]} exf5 {[%emt 0:01:22]} 20. Nc3 {[%emt 0:00:05]} Be6 {[%emt 0:00:49]} 21. Rb1 {[%emt 0:04:48]} O-O {[%emt 0:01:24]} 1/2-1/2

[Event "Festival Groningen-A 2024"]
[Site "Groningen"]
[Date "2024.12.24"]
[Round "4.25"]
[White "Ritzerveld, Noah"]
[Black "Kazarjan, Gachatur"]
[Result "1/2-1/2"]
[ECO "B66"]
[WhiteElo "2182"]
[BlackElo "2067"]
[Annotator "RC"]
[PlyCount "161"]
[EventDate "2024.12.21"]
[EventType "swiss"]
[EventCountry "NED"]
[SourceTitle "playchess.com"]
[Source "ChessBase"]
[SourceQuality "1"]
[TimeControl "40/5400+30:1800+30"]

1. e4 {[%emt 0:00:03]} c5 {[%emt 0:00:05]} 2. Nf3 {[%emt 0:00:09]} d6 {[%emt 0:00:06]} 3. d4 {[%emt 0:00:05]} cxd4 {[%emt 0:00:04]} 4. Nxd4 {[%emt 0:00:05]} Nf6 {[%emt 0:00:04]} 5. Nc3 {[%emt 0:00:07]} Nc6 {[%emt 0:00:03]} 6. Bg5 {[%emt 0:00:07]} e6 {[%emt 0:00:03]} 7. Qd2 {[%emt 0:00:16]} a6 {[%emt 0:00:07]} 8. O-O-O {[%emt 0:00:39]} Be7 {[%emt 0:00:04]} 9. Bxf6 {[%emt 0:07:20]} gxf6 {[%emt 0:01:42]} 10. f4 {[%emt 0:00:35]} Bd7 {[%emt 0:00:06]} 11. f5 {[%emt 0:02:45]} b5 {[%emt 0:03:33]} 12. fxe6 {[%emt 0:15:31]} fxe6 {[%emt 0:00:30]} 13. g3 {[%emt 0:01:38]} Qb6 {[%emt 0:04:21]} 14. Nce2 {[%emt 0:02:20]} O-O-O {[%emt 0:13:38]} 15. Bh3 {[%emt 0:04:43]} f5 {[%emt 0:06:48]} 16. exf5 {[%emt 0:01:53]} e5 {[%emt 0:02:50]} 17. Nxc6 {[%emt 0:01:38]} Qxc6 {[%emt 0:00:19]} 18. Nc3 {[%emt 0:01:52]} Rhe8 {[%emt 0:04:45]} 19. Nd5 {[%emt 0:04:25]} Bf8 {[%emt 0:05:19]} 20. Nf6 {[%emt 0:04:42]} d5 {[%emt 0:01:40]} 21. Qc3 {[%emt 0:13:55]} d4 {[%emt 0:08:23]} 22. Qxc6+ {[%emt 0:00:13]} Bxc6 {[%emt 0:00:02]} 23. Nxe8 {[%emt 0:01:32]} Bh6+ {[%emt 0:03:19]} 24. Kb1 {[%emt 0:00:06]} Bxh1 {[%emt 0:00:22]} 25. Rxh1 {[%emt 0:05:26]} Rxe8 {[%emt 0:00:07]} 26. Re1 {[%emt 0:04:17]} Kc7 {[%emt 0:02:12]} 27. Bg2 {[%emt 0:01:28]} Be3 {[%emt 0:01:34]} 28. Be4 {[%emt 0:01:22]} Kd6 {[%emt 0:02:29]} 29. c3 {[%emt 0:04:49]} Rg8 {[%emt 0:01:35]} 30. Kc2 {[%emt 0:01:27]} Ke7 {[%emt 0:04:29]} 31. Kd3 {[%emt 0:02:16]} h5 {[%emt 0:01:52]} 32. Rf1 {[%emt 0:02:56]} Kf6 {[%emt 0:00:56]} 33. cxd4 {[%emt 0:06:27]} exd4 {[%emt 0:01:30]} 34. Bd5 {[%emt 0:01:51]} Rg5 {[%emt 0:02:08]} 35. b4 {[%emt 0:01:57]} Rg7 {[%emt 0:01:55]} 36. a4 {[%emt 0:03:08]} Rc7 {[%emt 0:02:20]} 37. axb5 {[%emt 0:01:00]} axb5 {[%emt 0:00:06]} 38. Ke4 {[%emt 0:01:04]} Bd2 {[%emt 0:01:22]} 39. Kxd4 {[%emt 0:01:16]} Bxb4 {[%emt 0:00:06]} 40. Ke4 {[%emt 0:01:36]} Bc3 {[%emt 0:01:20]} 41. Rf3 {[%emt 0:04:26]} b4 {[%emt 0:00:56]} 42. Rd3 {[%emt 0:01:13]} Be5 {[%emt 0:02:07]} 43. Be6 {[%emt 0:00:43]} h4 {[%emt 0:19:16]} 44. gxh4 {[%emt 0:04:59]} Bxh2 {[%emt 0:01:49]} 45. Rd2 {[%emt 0:01:42]} Bg1 {[%emt 0:05:52]} 46. Rd6 {[%emt 0:08:17]} Rc3 {[%emt 0:11:44]} 47. Rd7 {[%emt 0:04:54]} Re3+ {[%emt 0:01:53]} 48. Kf4 {[%emt 0:00:05]} Rxe6 {[%emt 0:00:04]} 49. fxe6 {[%emt 0:00:05]} Kxe6 {[%emt 0:00:08]} 50. Rd1 {[%emt 0:03:24]} Bh2+ {[%emt 0:01:38]} 51. Ke4 {[%emt 0:03:01]} Be5 {[%emt 0:00:38]} 52. Rf1 {[%emt 0:01:09]} b3 {[%emt 0:00:36]} 53. Kd3 {[%emt 0:00:11]} Bf6 {[%emt 0:00:26]} 54. h5 {[%emt 0:00:12]} Kf7 {[%emt 0:00:03]} 55. Rg1 {[%emt 0:01:14]} Bg7 {[%emt 0:00:47]} 56. Rg6 {[%emt 0:00:16]} Bf6 {[%emt 0:00:21]} 57. Rg4 {[%emt 0:00:19]} Bg7 {[%emt 0:00:19]} 58. Rb4 {[%emt 0:00:13]} b2 {[%emt 0:00:11]} 59. Rb6 {[%emt 0:00:09]} Kg8 {[%emt 0:00:38]} 60. Ke4 {[%emt 0:00:45]} Kh7 {[%emt 0:00:21]} 61. Kf5 {[%emt 0:00:24]} Bd4 {[%emt 0:00:09]} 62. Rb5 {[%emt 0:00:46]} Kh6 {[%emt 0:00:07]} 63. Kg4 {[%emt 0:00:16]} Kh7 {[%emt 0:00:40]} 64. Kg5 {[%emt 0:01:41]} Be3+ {[%emt 0:00:07]} 65. Kf5 {[%emt 0:00:25]} Bd4 {[%emt 0:00:04]} 66. Rb7+ {[%emt 0:01:05]} Kh6 {[%emt 0:00:41]} 67. Kg4 {[%emt 0:00:06]} Bf6 {[%emt 0:00:14]} 68. Rb6 {[%emt 0:01:11]} Kh7 {[%emt 0:00:10]} 69. Rb5 {[%emt 0:00:53]} Bd4 {[%emt 0:00:27]} 70. Kf5 {[%emt 0:00:34]} Kh6 {[%emt 0:00:14]} 71. Ke4 {[%emt 0:00:52]} Bf6 {[%emt 0:01:19]} 72. Kd3 {[%emt 0:00:38]} Be5 {[%emt 0:01:28]} 73. Kc2 {[%emt 0:00:25]} Bg7 {[%emt 0:00:11]} 74. Rd5 {[%emt 0:00:23]} Bc3 {[%emt 0:00:53]} 75. Rd1 {[%emt 0:00:34]} Be5 {[%emt 0:00:15]} 76. Rh1 {[%emt 0:00:10]} Bd4 {[%emt 0:00:42]} 77. Kd3 {[%emt 0:00:10]} Bf6 {[%emt 0:00:04]} 78. Rb1 {[%emt 0:00:27]} Kxh5 {[%emt 0:00:06]} 79. Ke4 {[%emt 0:00:11]} Kg4 {[%emt 0:00:57]} 80. Rg1+ {[%emt 0:00:11]} Kh3 {[%emt 0:00:07]} 81. Kf3 {[%emt 0:00:22]} 1/2-1/2

[Event "Festival Groningen-A 2024"]
[Site "Groningen"]
[Date "2024.12.24"]
[Round "4.26"]
[White "Noordenbos, Daan"]
[Black "De Boer, Bas"]
[Result "1-0"]
[ECO "B61"]
[WhiteElo "2130"]
[BlackElo "2157"]
[Annotator "RC"]
[PlyCount "97"]
[EventDate "2024.12.21"]
[EventType "swiss"]
[EventCountry "NED"]
[SourceTitle "playchess.com"]
[Source "ChessBase"]
[SourceQuality "1"]
[TimeControl "40/5400+30:1800+30"]

1. e4 {[%emt 0:00:05]} c5 {[%emt 0:00:03]} 2. Nf3 {[%emt 0:00:13]} d6 {[%emt 0:00:05]} 3. d4 {[%emt 0:01:26]} cxd4 {[%emt 0:00:07]} 4. Nxd4 {[%emt 0:00:07]} Nf6 {[%emt 0:00:03]} 5. Nc3 {[%emt 0:00:21]} Nc6 {[%emt 0:00:04]} 6. Bg5 {[%emt 0:01:41]} Bd7 {[%emt 0:00:07]} 7. Qd2 {[%emt 0:02:17]} Rc8 {[%emt 0:00:07]} 8. f4 {[%emt 0:13:10]} Nxd4 {[%emt 0:01:15]} 9. Qxd4 {[%emt 0:02:08]} Qa5 {[%emt 0:00:04]} 10. Bxf6 {[%emt 0:13:16]} gxf6 {[%emt 0:00:49]} 11. Be2 {[%emt 0:01:47]} Qc5 {[%emt 0:02:50]} 12. O-O-O {[%emt 0:06:58]} Qxd4 {[%emt 0:17:04]} 13. Rxd4 {[%emt 0:00:01]} f5 {[%emt 0:02:24]} 14. Rhd1 {[%emt 0:09:52]} Bg7 {[%emt 0:05:18]} 15. e5 {[%emt 0:01:02]} Bc6 {[%emt 0:00:13]} 16. Nb5 {[%emt 0:01:28]} O-O {[%emt 0:20:32]} 17. Nxa7 {[%emt 0:02:06]} Ra8 {[%emt 0:00:25]} 18. Nxc6 {[%emt 0:00:22]} bxc6 {[%emt 0:00:04]} 19. a4 {[%emt 0:03:22]} dxe5 {[%emt 0:00:07]} 20. fxe5 {[%emt 0:00:43]} Bxe5 {[%emt 0:00:20]} 21. Rc4 {[%emt 0:01:29]} c5 {[%emt 0:06:12]} 22. Bf3 {[%emt 0:05:43]} Ra6 {[%emt 0:07:57]} 23. h3 {[%emt 0:01:30]} Rb8 {[%emt 0:02:15]} 24. b3 {[%emt 0:03:02]} Bd6 {[%emt 0:01:40]} 25. Be2 {[%emt 0:02:09]} Ra7 {[%emt 0:01:33]} 26. Rd5 {[%emt 0:00:20]} f4 {[%emt 0:00:37]} 27. Bd3 {[%emt 0:01:33]} h6 {[%emt 0:00:58]} 28. Kd1 {[%emt 0:02:38]} Kg7 {[%emt 0:00:29]} 29. Ke2 {[%emt 0:00:54]} Rb6 {[%emt 0:00:38]} 30. Kf3 {[%emt 0:05:43]} e6 {[%emt 0:03:49]} 31. Rdxc5 {[%emt 0:00:06]} Bxc5 {[%emt 0:00:08]} 32. Rxc5 {[%emt 0:00:00]} Rb4 {[%emt 0:00:16]} 33. Bc4 {[%emt 0:01:32]} Rb6 {[%emt 0:02:20]} 34. Kxf4 {[%emt 0:01:25]} Kf6 {[%emt 0:01:50]} 35. a5 {[%emt 0:03:19]} Rd6 {[%emt 0:00:11]} 36. Bd3 {[%emt 0:00:51]} Rd4+ {[%emt 0:03:05]} 37. Ke3 {[%emt 0:00:24]} Rd6 {[%emt 0:04:01]} 38. Rh5 {[%emt 0:00:46]} Kg7 {[%emt 0:00:26]} 39. Rc5 {[%emt 0:00:07]} f5 {[%emt 0:02:10]} 40. g4 {[%emt 0:01:30]} fxg4 {[%emt 0:00:19]} 41. hxg4 {[%emt 0:30:03]} Rd5 {[%emt 0:39:49]} 42. Rxd5 {[%emt 0:01:25]} exd5 {[%emt 0:00:02]} 43. a6 {[%emt 0:00:18]} Kf6 {[%emt 0:00:14]} 44. b4 {[%emt 0:02:14]} Ke5 {[%emt 0:00:08]} 45. b5 {[%emt 0:01:31]} Kd6 {[%emt 0:00:12]} 46. b6 {[%emt 0:01:57]} Re7+ {[%emt 0:00:12]} 47. Kd4 {[%emt 0:00:17]} Kc6 {[%emt 0:02:09]} 48. a7 {[%emt 0:03:28]} Re8 {[%emt 0:03:47]} 49. Bb5+ {[%emt 0:00:06]} 1-0